[Event "*** Titled Tuesday Blitz"]
[Site "Chess.com"]
[Date "2021.03.09"]
[Round "11"]
[White "Kobalia"]
[Black "Pilopa"]
[Result "0-1"]
[WhiteElo "2726"]
[BlackElo "2587"]
[TimeControl "180+1"]
[EndTime "12:10:56 PST"]
[Termination "Pilopa won on time"]

1. e4 {[%clk 0:03:00.9]} 1... Nc6 {[%clk 0:02:59]} 2. Nf3 {[%clk 0:02:59.9]}
2... d6 {[%clk 0:02:59.2]} 3. d4 {[%clk 0:02:59.1]} 3... Nf6 {[%clk 0:03:00.1]}
4. Bd3 {[%clk 0:02:56.5]} 4... g6 {[%clk 0:03:00.3]} 5. c3 {[%clk 0:02:55.3]}
5... Bg7 {[%clk 0:03:00.7]} 6. O-O {[%clk 0:02:55.8]} 6... O-O {[%clk
0:03:01.3]} 7. Re1 {[%clk 0:02:56.2]} 7... e5 {[%clk 0:03:01.6]} 8. h3 {[%clk
0:02:54]} 8... h6 {[%clk 0:03:01.7]} 9. Bb5 {[%clk 0:02:53]} 9... Nh5 {[%clk
0:02:57.1]} 10. Bxc6 {[%clk 0:02:50.1]} 10... bxc6 {[%clk 0:02:58]} 11. dxe5
{[%clk 0:02:50.1]} 11... dxe5 {[%clk 0:02:58.9]} 12. Qxd8 {[%clk 0:02:49.6]}
12... Rxd8 {[%clk 0:02:59.8]} 13. Be3 {[%clk 0:02:49.2]} 13... f5 {[%clk
0:02:54.6]} 14. Nbd2 {[%clk 0:02:44.9]} 14... f4 {[%clk 0:02:50.3]} 15. Bc5
{[%clk 0:02:44]} 15... g5 {[%clk 0:02:50.7]} 16. Nc4 {[%clk 0:02:41.6]} 16...
Re8 {[%clk 0:02:49.6]} 17. Na5 {[%clk 0:02:32.1]} 17... Bf6 {[%clk 0:02:05]} 18.
Nxc6 {[%clk 0:02:29.6]} 18... Ng7 {[%clk 0:02:03.3]} 19. Rad1 {[%clk 0:02:24.5]}
19... Ne6 {[%clk 0:01:58.8]} 20. Bb4 {[%clk 0:02:21.5]} 20... Ng7 {[%clk
0:01:57.5]} 21. b3 {[%clk 0:02:12.6]} 21... h5 {[%clk 0:01:54.2]} 22. Rd5 {[%clk
0:02:01.8]} 22... Bb7 {[%clk 0:01:44.3]} 23. Rc5 {[%clk 0:01:59.7]} 23... Ne6
{[%clk 0:01:39.9]} 24. Rc4 {[%clk 0:01:52]} 24... Ba6 {[%clk 0:01:34.8]} 25.
Nfxe5 {[%clk 0:01:51.4]} 25... Bxe5 {[%clk 0:01:25.9]} 26. Nxe5 {[%clk
0:01:50.3]} 26... Bxc4 {[%clk 0:01:26.2]} 27. Nxc4 {[%clk 0:01:51.2]} 27... Rad8
{[%clk 0:01:25.3]} 28. a4 {[%clk 0:01:42.9]} 28... Rb8 {[%clk 0:01:17.7]} 29.
Na5 {[%clk 0:01:37]} 29... c5 {[%clk 0:01:01.6]} 30. Ba3 {[%clk 0:01:36.7]}
30... Rbd8 {[%clk 0:01:00.5]} 31. Nc6 {[%clk 0:01:35.1]} 31... Rd3 {[%clk
0:00:53.9]} 32. Nxa7 {[%clk 0:01:33.8]} 32... Rxc3 {[%clk 0:00:51.9]} 33. Rb1
{[%clk 0:01:21.3]} 33... Nd4 {[%clk 0:00:50.8]} 34. Nb5 {[%clk 0:00:52.2]} 34...
Nxb5 {[%clk 0:00:44.1]} 35. axb5 {[%clk 0:00:48.9]} 35... Rb8 {[%clk 0:00:44.4]}
36. h4 {[%clk 0:00:47.7]} 36... g4 {[%clk 0:00:38.1]} 37. Bc1 {[%clk 0:00:46.6]}
37... Rxb5 {[%clk 0:00:37.1]} 38. Bxf4 {[%clk 0:00:45.7]} 38... Rcxb3 {[%clk
0:00:37.6]} 39. Rxb3 {[%clk 0:00:35.1]} 39... Rxb3 {[%clk 0:00:38.5]} 40. Kf1
{[%clk 0:00:35]} 40... Kf7 {[%clk 0:00:32.6]} 41. Ke2 {[%clk 0:00:34.4]} 41...
Ke6 {[%clk 0:00:26.5]} 42. Be3 {[%clk 0:00:34.1]} 42... c4 {[%clk 0:00:21.2]}
43. f3 {[%clk 0:00:33.9]} 43... Rb2+ {[%clk 0:00:20.8]} 44. Kf1 {[%clk
0:00:29.1]} 44... gxf3 {[%clk 0:00:20.4]} 45. gxf3 {[%clk 0:00:28.7]} 45... Ke5
{[%clk 0:00:17.7]} 46. Ke1 {[%clk 0:00:27.9]} 46... c3 {[%clk 0:00:14.1]} 47.
Kd1 {[%clk 0:00:27.1]} 47... Rh2 {[%clk 0:00:11.7]} 48. Kc1 {[%clk 0:00:24.9]}
48... Rh3 {[%clk 0:00:09.8]} 49. Kc2 {[%clk 0:00:20.5]} 49... Rxf3 {[%clk
0:00:09.6]} 50. Bh6 {[%clk 0:00:12.4]} 50... Kxe4 {[%clk 0:00:10.5]} 51. Bg7
{[%clk 0:00:11.6]} 51... Kf5 {[%clk 0:00:10.8]} 52. Bxc3 {[%clk 0:00:11.1]}
52... Kg4 {[%clk 0:00:10.2]} 53. Be1 {[%clk 0:00:11]} 53... Rf1 {[%clk 0:00:10]}
54. Kd1 {[%clk 0:00:07.9]} 54... Kf3 {[%clk 0:00:07.3]} 55. Kd2 {[%clk
0:00:07.6]} 55... Rg1 {[%clk 0:00:07.7]} 56. Kd1 {[%clk 0:00:04.2]} 56... Rg2
{[%clk 0:00:08.6]} 57. Kc1 {[%clk 0:00:03.3]} 57... Rh2 {[%clk 0:00:08.2]} 58.
Kd1 {[%clk 0:00:01.3]} 58... Ke3 {[%clk 0:00:07.8]} 0-1

[Event "*** Titled Tuesday Blitz"]
[Site "Chess.com"]
[Date "2021.03.09"]
[Round "11"]
[White "ShimanovAlex"]
[Black "elohunter1999"]
[Result "1-0"]
[WhiteElo "2797"]
[BlackElo "2630"]
[TimeControl "180+1"]
[EndTime "12:10:57 PST"]
[Termination "ShimanovAlex won on time"]

1. e4 {[%clk 0:03:00.9]} 1... c6 {[%clk 0:02:57.4]} 2. b3 {[%clk 0:02:58.2]}
2... d5 {[%clk 0:02:58.3]} 3. Bb2 {[%clk 0:02:58.7]} 3... dxe4 {[%clk
0:02:54.5]} 4. Nc3 {[%clk 0:02:58.4]} 4... Nf6 {[%clk 0:02:54.1]} 5. Qe2 {[%clk
0:02:58.4]} 5... Bf5 {[%clk 0:02:51.7]} 6. O-O-O {[%clk 0:02:57.2]} 6... e6
{[%clk 0:02:41.1]} 7. f3 {[%clk 0:02:51.6]} 7... exf3 {[%clk 0:02:38.5]} 8. Nxf3
{[%clk 0:02:52.5]} 8... Be7 {[%clk 0:02:35.5]} 9. h3 {[%clk 0:02:49.7]} 9...
Nbd7 {[%clk 0:02:30.5]} 10. g4 {[%clk 0:02:47.4]} 10... Bg6 {[%clk 0:02:30.5]}
11. Bg2 {[%clk 0:02:47.2]} 11... Qa5 {[%clk 0:02:28.3]} 12. Kb1 {[%clk
0:02:35.9]} 12... O-O-O {[%clk 0:02:27.1]} 13. d4 {[%clk 0:02:33]} 13... Bb4
{[%clk 0:02:17.1]} 14. Na4 {[%clk 0:02:22.5]} 14... Kb8 {[%clk 0:01:32.9]} 15.
a3 {[%clk 0:02:05.8]} 15... Be7 {[%clk 0:01:32.2]} 16. Ka2 {[%clk 0:02:05.9]}
16... Rhe8 {[%clk 0:01:14.6]} 17. c4 {[%clk 0:02:04.6]} 17... Ka8 {[%clk
0:01:12.4]} 18. Rhe1 {[%clk 0:02:03.5]} 18... Bf8 {[%clk 0:00:57.1]} 19. Rd2
{[%clk 0:01:34.3]} 19... Qc7 {[%clk 0:00:48.8]} 20. Nh4 {[%clk 0:01:25.2]} 20...
Nb6 {[%clk 0:00:42.9]} 21. Nc5 {[%clk 0:01:16.8]} 21... Nbd7 {[%clk 0:00:36.8]}
22. b4 {[%clk 0:01:13.2]} 22... Nxc5 {[%clk 0:00:36.1]} 23. dxc5 {[%clk
0:01:14.1]} 23... Rxd2 {[%clk 0:00:35.2]} 24. Qxd2 {[%clk 0:01:15]} 24... Rd8
{[%clk 0:00:34.9]} 25. Qf2 {[%clk 0:01:14.1]} 25... Bd3 {[%clk 0:00:33.1]} 26.
Kb3 {[%clk 0:01:03.5]} 26... Qd7 {[%clk 0:00:25.3]} 27. Qe3 {[%clk 0:01:03.4]}
27... Be7 {[%clk 0:00:17.5]} 28. Nf3 {[%clk 0:01:02.6]} 28... Bg6 {[%clk
0:00:12.8]} 29. Ne5 {[%clk 0:01:02.5]} 29... Qc8 {[%clk 0:00:10.9]} 30. h4
{[%clk 0:00:58.4]} 30... Nd7 {[%clk 0:00:11.1]} 31. h5 {[%clk 0:00:58]} 31...
Nxe5 {[%clk 0:00:11.3]} 32. Qxe5 {[%clk 0:00:57.9]} 32... Bd3 {[%clk 0:00:10.1]}
33. Qxg7 {[%clk 0:00:56.7]} 33... Qd7 {[%clk 0:00:10.3]} 34. Qc3 {[%clk
0:00:56]} 34... Bf6 {[%clk 0:00:09.4]} 35. Qc1 {[%clk 0:00:45.8]} 35... Bxb2
{[%clk 0:00:09]} 36. Kxb2 {[%clk 0:00:44.8]} 36... Qd4+ {[%clk 0:00:08.9]} 37.
Qc3 {[%clk 0:00:45.2]} 37... Qf2+ {[%clk 0:00:09.1]} 38. Kb3 {[%clk 0:00:39.3]}
38... Qxg2 {[%clk 0:00:09]} 39. Rd1 {[%clk 0:00:39.6]} 39... Qf3 {[%clk
0:00:08.1]} 40. Rd2 {[%clk 0:00:39.7]} 40... e5 {[%clk 0:00:07.9]} 41. b5 {[%clk
0:00:39.1]} 41... e4 {[%clk 0:00:07.1]} 42. b6 {[%clk 0:00:39]} 42... a6 {[%clk
0:00:07]} 43. Kb4 {[%clk 0:00:37.8]} 43... Qf1 {[%clk 0:00:04.8]} 44. Ka5 {[%clk
0:00:35]} 44... Qb1 {[%clk 0:00:04.5]} 45. Qf6 {[%clk 0:00:33.6]} 45... Rb8
{[%clk 0:00:04.2]} 46. Qd4 {[%clk 0:00:31.7]} 46... Qe1 {[%clk 0:00:04.3]} 47.
Qc3 {[%clk 0:00:31.3]} 47... Bxc4 {[%clk 0:00:04.2]} 48. a4 {[%clk 0:00:29.6]}
48... e3 {[%clk 0:00:04.4]} 49. Rc2 {[%clk 0:00:29.8]} 49... Qxc3+ {[%clk
0:00:04.5]} 50. Rxc3 {[%clk 0:00:30.7]} 50... e2 {[%clk 0:00:05.1]} 51. Re3
{[%clk 0:00:31.3]} 51... Bd3 {[%clk 0:00:05.2]} 52. g5 {[%clk 0:00:31.5]} 52...
Rg8 {[%clk 0:00:04.8]} 53. h6 {[%clk 0:00:30.6]} 53... Kb8 {[%clk 0:00:04.1]}
54. Re7 {[%clk 0:00:30.2]} 54... Kc8 {[%clk 0:00:04]} 55. Re3 {[%clk 0:00:30.2]}
55... Kd7 {[%clk 0:00:04.1]} 56. Rxd3+ {[%clk 0:00:30.5]} 56... Ke6 {[%clk
0:00:03.4]} 57. Re3+ {[%clk 0:00:31.1]} 57... Kd5 {[%clk 0:00:03.9]} 58. Rxe2
{[%clk 0:00:31.5]} 58... Kxc5 {[%clk 0:00:04.1]} 59. Re7 {[%clk 0:00:31.5]}
59... Rxg5 {[%clk 0:00:03.6]} 60. Rxb7 {[%clk 0:00:31.8]} 60... Kc4+ {[%clk
0:00:03.5]} 61. Kxa6 {[%clk 0:00:32.1]} 61... Kb4 {[%clk 0:00:03.2]} 62. Rxf7
{[%clk 0:00:31.5]} 62... Ra5+ {[%clk 0:00:03.7]} 63. Kb7 {[%clk 0:00:31.8]}
63... Kxa4 {[%clk 0:00:03.7]} 64. Rxh7 {[%clk 0:00:31.7]} 64... c5 {[%clk
0:00:02.8]} 65. Rc7 {[%clk 0:00:31.5]} 65... Kb4 {[%clk 0:00:02.3]} 66. h7
{[%clk 0:00:31.7]} 66... c4 {[%clk 0:00:02.6]} 67. h8=Q {[%clk 0:00:31.8]} 67...
Rb5 {[%clk 0:00:02.8]} 68. Qb2+ {[%clk 0:00:31.2]} 1-0

[Event "*** Titled Tuesday Blitz"]
[Site "Chess.com"]
[Date "2021.03.09"]
[Round "11"]
[White "Harry_Rakkel"]
[Black "Kislov_Oleg"]
[Result "1-0"]
[WhiteElo "2637"]
[BlackElo "2487"]
[TimeControl "180+1"]
[EndTime "12:10:59 PST"]
[Termination "Harry_Rakkel won by resignation"]

1. d4 {[%clk 0:03:00.9]} 1... Nf6 {[%clk 0:02:59.4]} 2. c4 {[%clk 0:03:00.6]}
2... e6 {[%clk 0:02:59]} 3. Nc3 {[%clk 0:03:00.2]} 3... d5 {[%clk 0:02:56.7]} 4.
cxd5 {[%clk 0:02:58.9]} 4... exd5 {[%clk 0:02:57.6]} 5. Bg5 {[%clk 0:02:58.3]}
5... Be7 {[%clk 0:02:57.1]} 6. e3 {[%clk 0:02:58.3]} 6... O-O {[%clk 0:02:55.1]}
7. Bd3 {[%clk 0:02:53.7]} 7... c6 {[%clk 0:02:54.2]} 8. Qc2 {[%clk 0:02:51.3]}
8... h6 {[%clk 0:02:53.7]} 9. Bh4 {[%clk 0:02:46.2]} 9... Re8 {[%clk 0:02:54]}
10. Nf3 {[%clk 0:02:37.4]} 10... Ne4 {[%clk 0:02:53.5]} 11. Bg3 {[%clk
0:02:24.8]} 11... Nxg3 {[%clk 0:02:35.6]} 12. hxg3 {[%clk 0:02:24.1]} 12... Nd7
{[%clk 0:02:27.1]} 13. O-O {[%clk 0:02:05.9]} 13... Nf6 {[%clk 0:02:25.2]} 14.
Rab1 {[%clk 0:02:04.6]} 14... Bd6 {[%clk 0:02:20.3]} 15. b4 {[%clk 0:02:01.4]}
15... a6 {[%clk 0:02:19.6]} 16. a4 {[%clk 0:02:00.5]} 16... Qe7 {[%clk
0:01:58.1]} 17. b5 {[%clk 0:01:58.6]} 17... axb5 {[%clk 0:01:58.4]} 18. axb5
{[%clk 0:01:59.4]} 18... c5 {[%clk 0:01:47.9]} 19. dxc5 {[%clk 0:01:51.4]} 19...
Bxc5 {[%clk 0:01:47.1]} 20. Ne2 {[%clk 0:01:44]} 20... Ne4 {[%clk 0:01:28.3]}
21. Bxe4 {[%clk 0:01:33.8]} 21... dxe4 {[%clk 0:01:26]} 22. Nfd4 {[%clk
0:01:33.6]} 22... b6 {[%clk 0:01:16.9]} 23. Nc6 {[%clk 0:01:26.2]} 23... Qf6
{[%clk 0:01:13.8]} 24. Nc3 {[%clk 0:01:09.4]} 24... Bb7 {[%clk 0:01:00.4]} 25.
Nd5 {[%clk 0:00:47.1]} 25... Qd6 {[%clk 0:01:00.4]} 26. Rfd1 {[%clk 0:00:45.7]}
26... Bxc6 {[%clk 0:00:57.2]} 27. Nxb6 {[%clk 0:00:45]} 27... Qe7 {[%clk
0:00:36.6]} 28. bxc6 {[%clk 0:00:33.2]} 28... Ra6 {[%clk 0:00:33.8]} 29. Nd5
{[%clk 0:00:30.9]} 29... Qd6 {[%clk 0:00:33.6]} 30. Rb7 {[%clk 0:00:21.2]} 30...
Rxc6 {[%clk 0:00:28.3]} 31. Ne7+ {[%clk 0:00:18.5]} 31... Qxe7 {[%clk
0:00:24.6]} 32. Rxe7 {[%clk 0:00:18.2]} 32... Rxe7 {[%clk 0:00:23.2]} 33. Rd8+
{[%clk 0:00:15.7]} 33... Kh7 {[%clk 0:00:23.1]} 34. Rd5 {[%clk 0:00:15.2]} 34...
Rec7 {[%clk 0:00:19.2]} 35. Qxe4+ {[%clk 0:00:15]} 35... g6 {[%clk 0:00:19.8]}
36. Rd7 {[%clk 0:00:14.4]} 36... Rxd7 {[%clk 0:00:11.1]} 37. Qxc6 {[%clk
0:00:14.3]} 37... Rd1+ {[%clk 0:00:09.2]} 38. Kh2 {[%clk 0:00:14.4]} 38... Bf8
{[%clk 0:00:07.6]} 39. Qc7 {[%clk 0:00:12.7]} 39... Kg8 {[%clk 0:00:07.1]} 40.
e4 {[%clk 0:00:12.1]} 40... h5 {[%clk 0:00:07.5]} 41. e5 {[%clk 0:00:11.9]}
41... Rd2 {[%clk 0:00:07]} 42. f4 {[%clk 0:00:11.7]} 42... Re2 {[%clk
0:00:07.3]} 43. Kh3 {[%clk 0:00:10.9]} 43... Re3 {[%clk 0:00:07]} 44. Kh2 {[%clk
0:00:10.4]} 44... Re2 {[%clk 0:00:07.1]} 45. Qd7 {[%clk 0:00:10.3]} 45... Re1
{[%clk 0:00:06.9]} 46. g4 {[%clk 0:00:10.3]} 46... hxg4 {[%clk 0:00:06.6]} 47.
Qxg4 {[%clk 0:00:11.2]} 47... Re3 {[%clk 0:00:06]} 48. Qd7 {[%clk 0:00:10.8]}
48... Bg7 {[%clk 0:00:04.3]} 49. Kg1 {[%clk 0:00:09.9]} 49... Re1+ {[%clk
0:00:03.7]} 50. Kf2 {[%clk 0:00:10.1]} 50... Re4 {[%clk 0:00:04]} 51. Kf3 {[%clk
0:00:10.4]} 51... Re1 {[%clk 0:00:02.8]} 52. Qd8+ {[%clk 0:00:10.1]} 52... Bf8
{[%clk 0:00:01.5]} 53. g4 {[%clk 0:00:09.5]} 53... Rf1+ {[%clk 0:00:01.3]} 54.
Ke4 {[%clk 0:00:08.7]} 54... Re1+ {[%clk 0:00:01.8]} 55. Kf3 {[%clk 0:00:09.3]}
55... Rf1+ {[%clk 0:00:02.3]} 56. Kg3 {[%clk 0:00:09.9]} 56... Re1 {[%clk
0:00:02.7]} 57. Qe8 {[%clk 0:00:08.5]} 57... Re3+ {[%clk 0:00:02.2]} 58. Kf2
{[%clk 0:00:08.1]} 58... Re1 {[%clk 0:00:02.7]} 59. Kxe1 {[%clk 0:00:06.9]} 1-0

[Event "*** Titled Tuesday Blitz"]
[Site "Chess.com"]
[Date "2021.03.09"]
[Round "11"]
[White "Oglob71"]
[Black "Grandmaster2B"]
[Result "0-1"]
[WhiteElo "2406"]
[BlackElo "2564"]
[TimeControl "180+1"]
[EndTime "12:11:02 PST"]
[Termination "Grandmaster2B won on time"]

1. d4 {[%clk 0:03:00.9]} 1... Nf6 {[%clk 0:02:58.9]} 2. Nf3 {[%clk 0:02:59.2]}
2... e6 {[%clk 0:02:59.1]} 3. c4 {[%clk 0:02:58]} 3... Bb4+ {[%clk 0:02:58.3]}
4. Nbd2 {[%clk 0:02:57.2]} 4... b6 {[%clk 0:02:57.1]} 5. g3 {[%clk 0:02:56.4]}
5... Bb7 {[%clk 0:02:57]} 6. Bg2 {[%clk 0:02:56.1]} 6... O-O {[%clk 0:02:57.4]}
7. O-O {[%clk 0:02:55.8]} 7... Bxd2 {[%clk 0:02:55.6]} 8. Bxd2 {[%clk 0:02:55]}
8... d6 {[%clk 0:02:55.6]} 9. Rc1 {[%clk 0:02:51.9]} 9... Nbd7 {[%clk
0:02:55.3]} 10. b3 {[%clk 0:02:51]} 10... Re8 {[%clk 0:02:55.4]} 11. Bc3 {[%clk
0:02:51]} 11... Qe7 {[%clk 0:02:53.9]} 12. Bb2 {[%clk 0:02:50.7]} 12... a5
{[%clk 0:02:54.2]} 13. Re1 {[%clk 0:02:50.2]} 13... Be4 {[%clk 0:02:53.4]} 14.
Qd2 {[%clk 0:02:48.8]} 14... h6 {[%clk 0:02:50.3]} 15. Bh3 {[%clk 0:02:46.6]}
15... Kh8 {[%clk 0:02:37.7]} 16. Qc3 {[%clk 0:02:43.2]} 16... c5 {[%clk
0:02:25.3]} 17. Nd2 {[%clk 0:02:42.5]} 17... Bb7 {[%clk 0:02:23.2]} 18. e4
{[%clk 0:02:40.3]} 18... cxd4 {[%clk 0:02:12.3]} 19. Qxd4 {[%clk 0:02:40]} 19...
Nc5 {[%clk 0:02:12.2]} 20. Bg2 {[%clk 0:02:38.3]} 20... Rad8 {[%clk 0:02:12]}
21. Rcd1 {[%clk 0:02:32.7]} 21... Rg8 {[%clk 0:02:10.7]} 22. f3 {[%clk
0:02:17.8]} 22... Nfd7 {[%clk 0:02:09.4]} 23. Nb1 {[%clk 0:02:16.4]} 23... Ne5
{[%clk 0:02:09.3]} 24. Nc3 {[%clk 0:02:13.4]} 24... Nc6 {[%clk 0:02:09.3]} 25.
Qf2 {[%clk 0:02:12.2]} 25... Nb4 {[%clk 0:02:08.8]} 26. Ba1 {[%clk 0:02:08.4]}
26... Nbd3 {[%clk 0:02:06.5]} 27. Qd4 {[%clk 0:02:05.5]} 27... Nxe1 {[%clk
0:02:05.6]} 28. Rxe1 {[%clk 0:02:06.4]} 28... Kh7 {[%clk 0:02:03.1]} 29. Nb5
{[%clk 0:02:05.4]} 29... Bc6 {[%clk 0:02:00.2]} 30. Nc3 {[%clk 0:02:02.1]} 30...
Qf6 {[%clk 0:01:50.1]} 31. Qd2 {[%clk 0:02:00]} 31... Qe7 {[%clk 0:01:43.9]} 32.
h4 {[%clk 0:01:58.8]} 32... Qb7 {[%clk 0:01:35.4]} 33. Kh2 {[%clk 0:01:53.7]}
33... d5 {[%clk 0:01:32.2]} 34. cxd5 {[%clk 0:01:52.4]} 34... exd5 {[%clk
0:01:33.1]} 35. exd5 {[%clk 0:01:48.1]} 35... Bxd5 {[%clk 0:01:34]} 36. Qc2+
{[%clk 0:01:44]} 36... Kh8 {[%clk 0:01:31.9]} 37. Nxd5 {[%clk 0:01:43.6]} 37...
Qxd5 {[%clk 0:01:32.8]} 38. Re7 {[%clk 0:01:37.5]} 38... Rd7 {[%clk 0:01:20.5]}
39. f4 {[%clk 0:01:34.8]} 39... Qd1 {[%clk 0:01:09.4]} 40. Qxd1 {[%clk
0:01:30.1]} 40... Rxd1 {[%clk 0:01:10.3]} 41. Be5 {[%clk 0:01:28.4]} 41... Rd2
{[%clk 0:01:08.6]} 42. Rxf7 {[%clk 0:01:26.2]} 42... Nd3 {[%clk 0:01:05.7]} 43.
Rb7 {[%clk 0:01:13.1]} 43... Ne1 {[%clk 0:01:03.6]} 44. Rxb6 {[%clk 0:01:08.6]}
44... Rxg2+ {[%clk 0:00:59.4]} 45. Kh3 {[%clk 0:01:08.3]} 45... Kh7 {[%clk
0:00:58.9]} 46. h5 {[%clk 0:01:07]} 46... Re2 {[%clk 0:00:51.3]} 47. Rb7 {[%clk
0:01:05.7]} 47... Nd3 {[%clk 0:00:51.3]} 48. Bd4 {[%clk 0:01:04.8]} 48... Re4
{[%clk 0:00:49.3]} 49. Bc3 {[%clk 0:01:04.3]} 49... a4 {[%clk 0:00:48.9]} 50. b4
{[%clk 0:01:02.7]} 50... Rc4 {[%clk 0:00:48.1]} 51. Bd2 {[%clk 0:01:01.6]} 51...
Rc2 {[%clk 0:00:48.4]} 52. Be3 {[%clk 0:01:01.6]} 52... Re2 {[%clk 0:00:48.1]}
53. Bd4 {[%clk 0:01:00.1]} 53... Rxa2 {[%clk 0:00:44.5]} 54. b5 {[%clk
0:00:59.6]} 54... Re2 {[%clk 0:00:41.7]} 55. Ra7 {[%clk 0:00:58]} 55... Re4
{[%clk 0:00:37.6]} 56. Bc3 {[%clk 0:00:45.7]} 56... Rc4 {[%clk 0:00:37]} 57. Ba1
{[%clk 0:00:40.8]} 57... Rb4 {[%clk 0:00:34.9]} 58. b6 {[%clk 0:00:31.7]} 58...
Rxb6 {[%clk 0:00:32.8]} 59. Rxa4 {[%clk 0:00:30.9]} 59... Rb5 {[%clk 0:00:32.6]}
60. g4 {[%clk 0:00:27]} 60... Rb4 {[%clk 0:00:31.9]} 61. Rxb4 {[%clk 0:00:21]}
61... Nxb4 {[%clk 0:00:32.8]} 62. g5 {[%clk 0:00:21.1]} 62... hxg5 {[%clk
0:00:29.8]} 63. fxg5 {[%clk 0:00:21.4]} 63... Ra8 {[%clk 0:00:28.8]} 64. Be5
{[%clk 0:00:19.9]} 64... Nc6 {[%clk 0:00:28.7]} 65. g6+ {[%clk 0:00:15.1]} 65...
Kh6 {[%clk 0:00:25.5]} 66. Bc3 {[%clk 0:00:12.6]} 66... Ra3 {[%clk 0:00:21.6]}
67. Kg4 {[%clk 0:00:12.3]} 67... Rxc3 {[%clk 0:00:21.7]} 68. Kh4 {[%clk
0:00:12.2]} 68... Rc4+ {[%clk 0:00:21.4]} 69. Kg3 {[%clk 0:00:11.8]} 69... Kxh5
{[%clk 0:00:22]} 0-1

[Event "*** Titled Tuesday Blitz"]
[Site "Chess.com"]
[Date "2021.03.09"]
[Round "11"]
[White "Slovak_fighter2000"]
[Black "Kildepiotr"]
[Result "0-1"]
[WhiteElo "2418"]
[BlackElo "2560"]
[TimeControl "180+1"]
[EndTime "12:11:05 PST"]
[Termination "Kildepiotr won by resignation"]

1. d4 {[%clk 0:03:00.9]} 1... c5 {[%clk 0:02:59.2]} 2. dxc5 {[%clk 0:03:00]}
2... e6 {[%clk 0:02:59.5]} 3. Nc3 {[%clk 0:02:59.8]} 3... Bxc5 {[%clk
0:02:59.6]} 4. Ne4 {[%clk 0:03:00.1]} 4... Nf6 {[%clk 0:03:00.2]} 5. Nxc5 {[%clk
0:02:59.9]} 5... Qa5+ {[%clk 0:03:00.8]} 6. c3 {[%clk 0:02:59]} 6... Qxc5 {[%clk
0:03:01.1]} 7. Be3 {[%clk 0:02:46.5]} 7... Qc7 {[%clk 0:03:00.6]} 8. g3 {[%clk
0:02:45.8]} 8... d5 {[%clk 0:02:59.1]} 9. Bg2 {[%clk 0:02:44.8]} 9... Nc6 {[%clk
0:02:59]} 10. Nf3 {[%clk 0:02:43.2]} 10... O-O {[%clk 0:02:57.5]} 11. O-O {[%clk
0:02:38.3]} 11... h6 {[%clk 0:02:55]} 12. Rc1 {[%clk 0:02:31.5]} 12... e5 {[%clk
0:02:53.7]} 13. Bc5 {[%clk 0:02:26]} 13... Rd8 {[%clk 0:02:48.8]} 14. Ba3 {[%clk
0:02:26.6]} 14... Bg4 {[%clk 0:02:46.3]} 15. Qa4 {[%clk 0:02:23.2]} 15... a6
{[%clk 0:02:39.8]} 16. h3 {[%clk 0:02:18.7]} 16... b5 {[%clk 0:02:39]} 17. Qc2
{[%clk 0:02:15.1]} 17... Be6 {[%clk 0:02:37]} 18. Bc5 {[%clk 0:02:10.3]} 18...
Na5 {[%clk 0:02:33.2]} 19. Be3 {[%clk 0:01:56.2]} 19... Rac8 {[%clk 0:02:30.9]}
20. Bd2 {[%clk 0:01:33.6]} 20... Nc4 {[%clk 0:02:27.6]} 21. b3 {[%clk
0:01:29.6]} 21... Nxd2 {[%clk 0:02:27.3]} 22. Nxd2 {[%clk 0:01:25.7]} 22... d4
{[%clk 0:02:27]} 23. c4 {[%clk 0:01:22.8]} 23... Qc5 {[%clk 0:02:07.4]} 24. Qd3
{[%clk 0:01:18.2]} 24... b4 {[%clk 0:01:58.7]} 25. Ne4 {[%clk 0:01:14.6]} 25...
Nxe4 {[%clk 0:01:57.6]} 26. Qxe4 {[%clk 0:01:15]} 26... f5 {[%clk 0:01:55.1]}
27. Qh4 {[%clk 0:01:12.5]} 27... e4 {[%clk 0:01:52.6]} 28. Kh2 {[%clk
0:01:03.9]} 28... Kh7 {[%clk 0:01:49.1]} 29. Qf4 {[%clk 0:01:02.5]} 29... g5
{[%clk 0:01:45.7]} 30. Qd2 {[%clk 0:01:02.3]} 30... e3 {[%clk 0:01:39.9]} 31.
Qd3 {[%clk 0:01:00.4]} 31... exf2 {[%clk 0:01:31.9]} 32. Rxf2 {[%clk 0:01:01.3]}
32... Kg7 {[%clk 0:01:24.7]} 33. Re1 {[%clk 0:00:53.6]} 33... a5 {[%clk
0:01:03.2]} 34. e3 {[%clk 0:00:53.1]} 34... dxe3 {[%clk 0:01:03.4]} 35. Qxe3
{[%clk 0:00:53.2]} 35... Qxe3 {[%clk 0:01:03.6]} 36. Rxe3 {[%clk 0:00:53.9]}
36... Kf6 {[%clk 0:01:02.4]} 37. Ree2 {[%clk 0:00:46.3]} 37... Rd3 {[%clk
0:00:53.5]} 38. Be4 {[%clk 0:00:43.3]} 38... Rd4 {[%clk 0:00:52.2]} 39. Bxf5
{[%clk 0:00:41.2]} 39... Bxf5 {[%clk 0:00:52.5]} 40. g4 {[%clk 0:00:41.2]} 40...
Rc5 {[%clk 0:00:50.8]} 41. gxf5 {[%clk 0:00:37.7]} 41... Rxf5 {[%clk 0:00:50.8]}
42. Rxf5+ {[%clk 0:00:37.9]} 42... Kxf5 {[%clk 0:00:51.7]} 43. Kg3 {[%clk
0:00:36]} 43... Rd3+ {[%clk 0:00:51]} 44. Kg2 {[%clk 0:00:36.6]} 44... h5 {[%clk
0:00:49.9]} 45. Rc2 {[%clk 0:00:34.1]} 45... g4 {[%clk 0:00:43.9]} 46. hxg4+
{[%clk 0:00:33.5]} 46... hxg4 {[%clk 0:00:43.5]} 47. Rf2+ {[%clk 0:00:30.4]}
47... Ke4 {[%clk 0:00:40.2]} 48. Re2+ {[%clk 0:00:30.8]} 48... Kd4 {[%clk
0:00:40.1]} 49. Kf2 {[%clk 0:00:25.9]} 49... Kc3 {[%clk 0:00:36.7]} 50. Re5
{[%clk 0:00:19.4]} 50... Rd2+ {[%clk 0:00:35.4]} 51. Re2 {[%clk 0:00:19.5]}
51... Rd4 {[%clk 0:00:20.6]} 52. Re5 {[%clk 0:00:19]} 52... a4 {[%clk
0:00:20.7]} 53. bxa4 {[%clk 0:00:16.7]} 53... Rxc4 {[%clk 0:00:20]} 54. a5
{[%clk 0:00:16.3]} 54... Kb2 {[%clk 0:00:19.8]} 55. Re2+ {[%clk 0:00:15.7]}
55... Ka3 {[%clk 0:00:19.7]} 56. a6 {[%clk 0:00:09.5]} 56... Rc6 {[%clk
0:00:19.7]} 57. Kg3 {[%clk 0:00:09.9]} 57... Rxa6 {[%clk 0:00:19.7]} 58. Kxg4
{[%clk 0:00:10.3]} 58... Rf6 {[%clk 0:00:18.9]} 59. Kg3 {[%clk 0:00:05.9]} 59...
Rf1 {[%clk 0:00:18.9]} 60. Re7 {[%clk 0:00:02.9]} 60... Kxa2 {[%clk 0:00:17.7]}
61. Ra7+ {[%clk 0:00:03.5]} 61... Kb2 {[%clk 0:00:17.8]} 62. Kg2 {[%clk
0:00:04.2]} 62... Rf6 {[%clk 0:00:15.9]} 63. Rc7 {[%clk 0:00:03.8]} 63... b3
{[%clk 0:00:15.9]} 64. Kg3 {[%clk 0:00:04.1]} 64... Ka2 {[%clk 0:00:16]} 65. Kg2
{[%clk 0:00:04.4]} 65... b2 {[%clk 0:00:16]} 66. Ra7+ {[%clk 0:00:05]} 66... Kb1
{[%clk 0:00:16.4]} 67. Rc7 {[%clk 0:00:05.1]} 67... Ra6 {[%clk 0:00:16.2]} 0-1